bitfinex/quotes_BTCUSD_20251029
["timestamp","ask_amount","ask_price","bid_price","bid_amount"]
[1761766146186,0.24879742,111170.0,111160.0,0.03157062]
[1761766146599,0.20982465,111170.0,111160.0,0.06424062]
[1761766147033,0.20982465,111170.0,111160.0,0.06324062]
[1761766147246,0.20982465,111170.0,111160.0,0.03257062]
[1761766147455,0.20982465,111170.0,111160.0,0.06420062]
[1761766147648,0.20982465,111170.0,111160.0,0.06520062]
[1761766147847,0.20982465,111170.0,111160.0,0.24512145]
[1761766148067,0.20982465,111170.0,111160.0,0.06227068]
[1761766148290,0.20982465,111170.0,111160.0,0.19329151]
[1761766148739,0.20994465,111170.0,111160.0,0.19329151]
[1761766148950,0.20982465,111170.0,111160.0,0.19329151]
[1761766149386,0.19594308,111180.0,111160.0,0.24219151]
[1761766149600,0.19594308,111180.0,111170.0,0.03163]
[1761766149822,0.17990465,111170.0,111160.0,0.18092083]
[1761766150230,0.17990465,111170.0,111160.0,0.26045083]
[1761766150437,0.19594308,111180.0,111160.0,0.26045083]
[1761766150645,0.17990465,111170.0,111160.0,0.26045083]
[1761766151060,0.18002465,111170.0,111160.0,0.17992083]
[1761766151290,0.18014465,111170.0,111150.0,0.19254102]
[1761766151505,0.18004083,111160.0,111150.0,0.00360952]
[1761766151717,0.18016083,111160.0,111150.0,0.00360952]
[1761766151939,0.22515408,111160.0,111150.0,0.00360952]
[1761766152162,0.31497309,111160.0,111150.0,0.00360952]
[1761766152639,0.69115537,111160.0,111150.0,0.00360952]
[1761766153066,0.70065953,111160.0,111150.0,0.00460952]
[1761766153286,0.69115537,111160.0,111150.0,0.00460952]
[1761766153495,0.69115537,111160.0,111150.0,0.00360952]
[1761766153717,0.69115537,111160.0,111150.0,0.00460952]
[1761766153953,0.17993702,111150.0,111140.0,0.0004]
[1761766154185,0.75874932,111150.0,111140.0,1e-08]
[1761766154424,0.76874931,111150.0,111140.0,1e-08]
[1761766154828,0.7787493,111150.0,111140.0,1e-08]
[1761766155248,0.7807493,111150.0,111140.0,1e-08]
[1761766155675,0.76874931,111150.0,111140.0,1e-08]
[1761766155885,0.7827493,111150.0,111140.0,1e-08]
[1761766156128,0.7837493,111150.0,111140.0,1e-08]
[1761766156337,0.8786493,111150.0,111140.0,1e-08]
[1761766156555,0.90713337,111150.0,111140.0,1e-08]
[1761766156766,0.90613337,111150.0,111140.0,1e-08]
[1761766156979,0.81323337,111150.0,111140.0,1e-08]
[1761766157183,0.7847493,111150.0,111140.0,1e-08]
[1761766157455,3.7827493,111150.0,111140.0,1e-08]
[1761766157673,3.85161831,111150.0,111140.0,1e-08]
[1761766158096,3.85961831,111150.0,111140.0,1e-08]
[1761766158529,3.86432259,111150.0,111140.0,1e-08]
[1761766161142,3.87432258,111150.0,111140.0,1e-08]
[1761766161408,3.86432259,111150.0,111140.0,1e-08]
[1761766162951,3.86432259,111150.0,111090.0,0.0004]
[1761766162952,0.03618228,111100.0,111090.0,0.0004]
[1761766163192,0.37996005,111100.0,111090.0,0.0004]
[1761766163404,0.3665787,111100.0,111090.0,0.0004]
[1761766164353,0.61107701,111100.0,111090.0,0.0025442]
[1761766164563,0.001,111100.0,111090.0,0.2596184]
[1761766164776,0.00112,111100.0,111090.0,0.1825784]
[1761766164990,0.181138,111100.0,111090.0,0.1825784]
[1761766165200,0.00212,111100.0,111090.0,0.1825784]
[1761766165624,0.02689,111110.0,111100.0,0.180018]
[1761766165835,0.02689,111110.0,111100.0,0.213018]
[1761766166873,0.02689,111110.0,111100.0,0.214018]
[1761766167300,0.17999191,111140.0,111110.0,0.17998571]
[1761766167510,0.20685971,111130.0,111110.0,0.30505571]
[1761766167708,0.20685971,111130.0,111120.0,0.1799856]
[1761766167990,0.2068594,111130.0,111120.0,0.1799856]
[1761766168206,0.2068594,111130.0,111110.0,0.22402571]
[1761766168207,0.2069794,111130.0,111110.0,0.22402571]
[1761766168427,0.1801056,111120.0,111100.0,0.26983701]
[1761766168653,0.1801056,111120.0,111110.0,0.1810018]
[1761766168873,0.1801056,111120.0,111110.0,0.1800018]
[1761766169081,0.00012,111120.0,111110.0,0.21365586]
[1761766169293,0.1799856,111120.0,111110.0,0.25769586]
[1761766169503,0.226958,111120.0,111110.0,0.18065586]
[1761766169919,0.0469724,111120.0,111110.0,0.21365586]
[1761766170126,0.0468524,111120.0,111110.0,0.25769586]
[1761766170334,0.0468524,111120.0,111110.0,0.21465586]
[1761766170540,0.28853917,111130.0,111110.0,0.25869586]
[1761766170750,0.001,111120.0,111110.0,0.08369406]
[1761766170930,0.001,111120.0,111110.0,0.3110718]
[1761766171317,0.001,111120.0,111110.0,0.31172586]
[1761766171555,0.28853843,111130.0,111120.0,0.1799856]
[1761766171766,0.28953843,111130.0,111120.0,0.2129856]
[1761766171972,0.28953843,111130.0,111120.0,1.08589041]
[1761766171973,0.001,111130.0,111120.0,1.08589041]
[1761766172353,0.001,111130.0,111120.0,0.35127061]
[1761766172562,0.001,111130.0,111120.0,1.08589041]
[1761766173485,0.20901702,111150.0,111140.0,0.17995321]
[1761766173832,0.02908,111150.0,111140.0,0.21295321]
[1761766174396,0.20901702,111150.0,111140.0,0.033]
[1761766174573,0.23098498,111150.0,111130.0,0.17995492]
[1761766174949,0.23098498,111150.0,111140.0,0.001]
[1761766175172,0.23198498,111150.0,111140.0,0.18495321]
[1761766175368,0.23098498,111150.0,111140.0,0.17995321]
[1761766175909,0.32080399,111150.0,111130.0,0.17995492]
[1761766176325,0.20906506,111150.0,111140.0,0.21295321]
[1761766176756,0.21006506,111150.0,111140.0,0.21295321]
[1761766177350,0.21006506,111150.0,111130.0,0.18395492]
[1761766177351,0.17995321,111140.0,111130.0,0.18395492]
[1761766177561,0.20918506,111150.0,111140.0,0.17995321]
[1761766177765,0.21018506,111150.0,111140.0,0.004]
[1761766177969,0.25010749,111150.0,111140.0,0.004]
[1761766178824,0.25010749,111150.0,111140.0,0.005]
[1761766179030,0.3400465,111150.0,111140.0,0.005]
[1761766179445,0.3399265,111150.0,111140.0,0.005]
[1761766179862,0.3400465,111150.0,111140.0,0.005]
[1761766181107,0.3399265,111150.0,111140.0,0.03718]
[1761766181317,0.30000407,111150.0,111140.0,0.005]
[1761766181526,0.30012407,111150.0,111140.0,0.005]
[1761766181728,0.30000407,111150.0,111140.0,0.005]
[1761766181944,0.30012407,111150.0,111140.0,0.005]
[1761766182144,0.30000407,111150.0,111140.0,0.005]
[1761766182359,0.3489084,111150.0,111140.0,0.005]
[1761766182990,0.29988407,111150.0,111140.0,0.03718]
[1761766183199,0.30000407,111150.0,111140.0,0.03718]
[1761766183407,0.30000407,111150.0,111140.0,0.005]
[1761766183612,0.30000407,111150.0,111130.0,0.22556501]
[1761766183818,0.17995321,111140.0,111130.0,0.22556501]
[1761766184229,0.17995321,111140.0,111130.0,0.25774501]
[1761766184441,0.17995321,111140.0,111130.0,0.20848501]
[1761766184644,0.17995321,111140.0,111130.0,0.25774501]
[1761766184851,0.17995321,111140.0,111130.0,0.21348501]
[1761766185070,0.21006506,111150.0,111130.0,0.26274501]
[1761766185271,0.21006506,111150.0,111140.0,0.03218]
[1761766185480,0.03012804,111150.0,111140.0,0.03218]
[1761766185684,0.17995321,111140.0,111130.0,0.05426]
[1761766185876,0.17995321,111140.0,111130.0,0.1849694]
[1761766186095,0.17995321,111140.0,111130.0,0.2131494]
[1761766186259,0.18007321,111140.0,111130.0,0.2131494]
[1761766186506,0.18107321,111140.0,111130.0,0.2181494]
[1761766186924,0.18107321,111140.0,111130.0,0.1849694]
[1761766187083,0.19640203,111140.0,111130.0,0.1849694]
[1761766187279,0.19640203,111140.0,111130.0,0.005]
[1761766187466,0.19640203,111140.0,111130.0,0.1849694]
[1761766187677,0.19662714,111140.0,111130.0,0.005]
[1761766187879,0.19662714,111140.0,111130.0,0.006]
[1761766188125,0.47974255,111140.0,111130.0,0.006]
[1761766188322,0.65969576,111140.0,111130.0,0.006]
[1761766188646,0.64617961,111140.0,111130.0,0.006]
[1761766188850,0.6460745,111140.0,111130.0,0.00589489]
[1761766189294,0.6460745,111140.0,111130.0,0.001]
[1761766189504,0.6480745,111140.0,111130.0,0.002]
[1761766189799,0.6480745,111140.0,111130.0,0.001]
[1761766190021,0.73478846,111140.0,111130.0,0.001]
[1761766190481,0.180018,111100.0,111090.0,0.0004]
[1761766190686,0.26983701,111100.0,111090.0,0.0004]
[1761766191749,0.26983701,111100.0,111090.0,0.0025442]
[1761766192517,0.001,111100.0,111090.0,0.1885784]
[1761766192718,0.181018,111100.0,111090.0,0.0407242]
[1761766192928,0.181018,111100.0,111090.0,0.2655484]
[1761766193104,0.180018,111100.0,111090.0,0.2575484]
[1761766193507,0.182018,111100.0,111090.0,0.2585484]
[1761766193715,0.181018,111100.0,111090.0,0.1805784]
[1761766194162,0.181018,111100.0,111090.0,0.1845784]
[1761766194338,0.181018,111100.0,111090.0,0.1855784]
[1761766194708,0.181018,111100.0,111090.0,0.0055442]
[1761766194918,0.181018,111100.0,111090.0,0.1855784]
[1761766195246,0.180018,111100.0,111090.0,0.1815784]
[1761766195443,0.181018,111100.0,111090.0,0.1845784]
[1761766195649,0.21995498,111100.0,111090.0,0.0045442]
[1761766195848,0.181018,111100.0,111090.0,0.2157584]
[1761766196282,0.181018,111100.0,111090.0,0.21663066]
[1761766196489,0.181018,111100.0,111090.0,0.18445066]
[1761766196912,0.181018,111100.0,111090.0,0.21663066]
[1761766197130,0.181018,111100.0,111090.0,0.18445066]
[1761766197549,0.181018,111100.0,111090.0,0.21663066]
[1761766198408,0.001,111100.0,111090.0,0.21663066]
[1761766198611,0.001,111100.0,111090.0,0.26589066]
[1761766199078,0.181018,111100.0,111090.0,0.26589066]
[1761766199238,0.001,111100.0,111090.0,0.26589066]
[1761766199438,0.001,111100.0,111090.0,0.21663066]
[1761766199655,0.001,111100.0,111090.0,0.25188776]
[1761766200310,0.181018,111100.0,111090.0,0.00087226]
[1761766200459,0.21995502,111100.0,111090.0,0.00087226]
[1761766200665,0.03993702,111100.0,111090.0,0.18090646]
[1761766200864,0.001,111100.0,111090.0,0.99696626]
[1761766201070,0.001,111100.0,111090.0,0.26234646]
[1761766201856,0.181018,111100.0,111090.0,0.00087226]
[1761766202058,0.64701929,111100.0,111090.0,0.00087226]
[1761766202301,0.73255651,111100.0,111090.0,0.00087226]
[1761766203547,0.73555651,111100.0,111090.0,0.00087226]
[1761766204415,0.73555651,111100.0,111080.0,0.0004]
[1761766204416,0.5200342,111090.0,111080.0,0.0004]
[1761766204625,0.63362321,111090.0,111080.0,0.0005443]
[1761766206421,0.63862321,111090.0,111080.0,0.0015443]
[1761766206691,0.72844222,111090.0,111080.0,0.0015443]
[1761766208028,0.73044222,111090.0,111080.0,0.0015443]
[1761766208249,0.7666245,111090.0,111080.0,0.0015443]
[1761766209142,0.67680549,111090.0,111080.0,0.0015443]
[1761766210290,0.67680549,111090.0,111080.0,0.00176242]
[1761766211416,0.67680549,111090.0,111080.0,1e-08]
[1761766211885,0.69680547,111090.0,111080.0,1e-08]
[1761766212802,0.67180549,111090.0,111080.0,1e-08]
[1761766213024,0.7686245,111090.0,111080.0,0.00100001]
[1761766213947,0.7666245,111090.0,111080.0,0.00100001]
[1761766214176,0.7696245,111090.0,111080.0,0.00100001]
[1761766214408,0.7626245,111090.0,111080.0,1e-08]
[1761766214639,0.7616245,111090.0,111080.0,4.001e-05]
[1761766214858,0.7596245,111090.0,111080.0,4.001e-05]
[1761766215081,0.7626245,111090.0,111080.0,4.001e-05]
[1761766215300,0.7676245,111090.0,111080.0,4.001e-05]
[1761766215511,0.7596245,111090.0,111080.0,4.001e-05]
[1761766216005,0.72644222,111090.0,111080.0,4.001e-05]
[1761766216238,0.7626245,111090.0,111080.0,4.001e-05]
[1761766217119,0.78262448,111090.0,111080.0,4.001e-05]
[1761766217741,0.57623267,111080.0,111070.0,1e-08]
[1761766217952,0.56624889,111070.0,111060.0,1e-08]
[1761766218167,0.6835579,111070.0,111060.0,4.818e-05]
[1761766219460,0.64737562,111070.0,111060.0,4.818e-05]
[1761766219681,0.52008283,111060.0,111050.0,1e-08]
[1761766219891,0.60990184,111060.0,111050.0,0.00014467]
[1761766220106,0.69626591,111060.0,111050.0,0.00014467]
[1761766221175,0.69826591,111060.0,111050.0,0.00014467]
[1761766221900,0.70226591,111060.0,111050.0,0.00018467]
[1761766222856,0.27590184,111060.0,111050.0,0.00018467]
[1761766223087,0.27590184,111060.0,111050.0,0.25279372]
[1761766223088,0.006,111060.0,111050.0,0.25279372]
[1761766223304,0.18608283,111060.0,111050.0,0.29950372]
[1761766223535,0.006,111060.0,111050.0,0.29950372]
[1761766223761,0.20755662,111070.0,111050.0,0.29950372]
[1761766224003,0.20755662,111070.0,111060.0,0.21014283]
[1761766224443,0.20755662,111070.0,111060.0,0.03006]
[1761766224903,0.20755662,111070.0,111060.0,0.21014283]
[1761766225319,0.001,111070.0,111060.0,0.21014283]
[1761766225541,0.001,111070.0,111060.0,0.25685283]
[1761766225766,0.001,111070.0,111060.0,0.73171062]
[1761766225991,0.001,111070.0,111060.0,1.11966927]
[1761766226210,0.001,111070.0,111060.0,1.20948828]
[1761766226425,0.18001999,111100.0,111090.0,0.1800342]
[1761766226640,0.217353,111110.0,111090.0,0.2525442]
[1761766226860,0.217353,111110.0,111090.0,0.2691942]
[1761766226861,0.180018,111100.0,111090.0,0.2691942]
[1761766227344,0.180018,111100.0,111090.0,0.2992542]
[1761766227559,0.21735189,111110.0,111100.0,0.180018]
[1761766227778,0.00048076,111110.0,111100.0,0.73164579]
[1761766228202,0.00048076,111110.0,111100.0,0.256788]
[1761766228856,0.00148076,111110.0,111100.0,0.256788]
[1761766229295,0.18248256,111110.0,111090.0,0.2224842]
[1761766229510,0.18148256,111110.0,111100.0,0.0321]
[1761766229724,0.18148256,111110.0,111100.0,0.00204]
[1761766229946,0.27230157,111110.0,111100.0,4e-05]
[1761766230161,0.31753036,111110.0,111100.0,4e-05]
[1761766230384,0.31853036,111110.0,111100.0,0.00204]
[1761766230611,0.31653036,111110.0,111100.0,0.00204]
[1761766230829,0.18148256,111110.0,111100.0,0.0301]
[1761766231044,0.18248256,111110.0,111100.0,0.0311]
[1761766231275,0.18248256,111110.0,111100.0,0.00104]
[1761766231492,0.18148256,111110.0,111100.0,0.0311]
[1761766231705,0.34463074,111110.0,111100.0,0.00104]
[1761766231917,0.34563074,111110.0,111100.0,0.00104]
[1761766232127,0.68563074,111110.0,111100.0,0.00104]
[1761766232336,0.68563074,111110.0,111100.0,4e-05]
[1761766232581,0.68563074,111110.0,111100.0,0.00204]
[1761766233014,0.68563074,111110.0,111100.0,4e-05]
[1761766233460,0.68663074,111110.0,111100.0,4e-05]
[1761766233674,0.68563074,111110.0,111100.0,4e-05]
[1761766233932,0.69963073,111110.0,111100.0,4e-05]
[1761766234611,0.68963074,111110.0,111100.0,4e-05]
[1761766242241,0.27630157,111110.0,111100.0,4e-05]
[1761766242461,0.27730157,111110.0,111100.0,4e-05]
[1761766242919,0.61730157,111110.0,111100.0,4e-05]
[1761766244222,0.61630157,111110.0,111100.0,4e-05]
[1761766246141,0.61730157,111110.0,111100.0,4e-05]
[1761766246349,0.69603036,111110.0,111100.0,4e-05]
[1761766246975,0.69703036,111110.0,111100.0,4e-05]
[1761766247827,0.73321264,111110.0,111100.0,4e-05]
[1761766248538,0.69703036,111110.0,111100.0,4e-05]
[1761766248951,0.73321264,111110.0,111100.0,4e-05]
[1761766250015,0.69703036,111110.0,111100.0,4e-05]
[1761766250221,0.73321264,111110.0,111100.0,4e-05]
[1761766252766,0.97591264,111110.0,111100.0,4e-05]
[1761766258359,0.98434248,111110.0,111100.0,4e-05]
[1761766258562,0.98434252,111110.0,111100.0,4e-05]
[1761766259027,0.97591264,111110.0,111100.0,4e-05]
[1761766259255,0.98434365,111110.0,111100.0,4e-05]
[1761766261011,0.97591264,111110.0,111100.0,4e-05]
[1761766261215,0.98434414,111110.0,111100.0,4e-05]
[1761766261643,0.18008283,111060.0,111050.0,4.001e-05]
[1761766261851,0.71420729,111060.0,111050.0,4.001e-05]
[1761766262060,0.71520729,111060.0,111050.0,4.001e-05]
[1761766262275,0.71520729,111060.0,111050.0,0.00047642]
[1761766262880,0.71520729,111060.0,111050.0,0.00162108]
[1761766263152,0.71720729,111060.0,111050.0,0.00262108]
[1761766263356,0.64039184,111060.0,111050.0,0.00162108]
[1761766263773,0.30039184,111060.0,111050.0,0.03165108]
[1761766263980,0.30039184,111060.0,111050.0,0.00162108]
[1761766264350,0.30139184,111060.0,111050.0,0.00162108]
[1761766264558,0.34853769,111060.0,111050.0,0.00162108]
[1761766265641,0.30039184,111060.0,111050.0,0.03165108]
[1761766265799,0.002,111060.0,111050.0,0.25897013]
[1761766266209,0.002,111060.0,111050.0,0.34878914]
[1761766267092,0.18208283,111060.0,111050.0,0.21175013]
[1761766267316,0.003,111060.0,111050.0,0.21275013]
[1761766267571,0.18308283,111060.0,111050.0,0.21275013]
[1761766268012,0.18108283,111060.0,111050.0,0.21175013]
[1761766268240,0.18208283,111060.0,111050.0,0.25986013]
[1761766268472,0.21729785,111060.0,111050.0,0.00062108]
[1761766268919,0.21829785,111060.0,111050.0,0.00462108]
[1761766269413,0.18208283,111060.0,111050.0,0.00262108]
[1761766269604,0.18008283,111060.0,111050.0,0.25130013]
[1761766269818,0.18008283,111060.0,111050.0,0.29841013]
[1761766270235,0.18008283,111060.0,111050.0,0.07220108]
[1761766270456,0.18008283,111060.0,111050.0,0.25230013]
[1761766270690,0.16470333,111070.0,111050.0,0.34630263]
[1761766270914,0.20850914,111080.0,111060.0,0.21009283]
[1761766271133,0.18006662,111070.0,111060.0,0.03001]
[1761766271361,0.18006662,111070.0,111060.0,0.18008283]
[1761766271578,0.18006662,111070.0,111060.0,0.21009283]
[1761766271798,0.22174057,111070.0,111050.0,0.22085372]
[1761766272310,0.18108283,111060.0,111050.0,0.00018467]
[1761766272525,0.27190184,111060.0,111050.0,0.00018467]
[1761766274075,0.30808412,111060.0,111050.0,0.00018467]
[1761766274311,0.27090184,111060.0,111050.0,0.00118467]
[1761766274555,0.18108283,111060.0,111050.0,0.03282467]
[1761766274754,0.18108283,111060.0,111050.0,0.00118467]
[1761766274969,0.18108283,111060.0,111050.0,0.00218467]
[1761766275212,0.21819777,111060.0,111050.0,0.00118467]
[1761766275432,0.30801678,111060.0,111050.0,0.00018467]
[1761766275652,0.31001678,111060.0,111050.0,0.00218467]
[1761766276116,0.30901678,111060.0,111050.0,0.00218467]
[1761766276561,0.27190184,111060.0,111050.0,0.00318467]
[1761766277020,0.27190184,111060.0,111050.0,0.00362108]
[1761766277234,0.27290184,111060.0,111050.0,0.00362108]
[1761766277658,0.27090184,111060.0,111050.0,0.00062108]
[1761766277895,0.27290184,111060.0,111050.0,0.00162108]
[1761766278123,0.27290184,111060.0,111050.0,0.00062108]
[1761766278351,0.31829869,111060.0,111050.0,0.00062108]
[1761766278572,0.31929869,111060.0,111050.0,0.00162108]
[1761766279020,0.31929869,111060.0,111050.0,0.00262108]
[1761766279246,0.27390184,111060.0,111050.0,0.00262108]
[1761766279966,0.27490184,111060.0,111050.0,0.00262108]
[1761766280649,0.31108412,111060.0,111050.0,0.00262108]
[1761766281324,0.31008412,111060.0,111050.0,0.00262108]
[1761766281561,0.27390184,111060.0,111050.0,0.03426108]
[1761766281790,0.32029869,111060.0,111050.0,0.00262108]
[1761766283378,0.27490184,111060.0,111050.0,0.00262108]
[1761766284367,0.09481901,111060.0,111050.0,0.00262108]
[1761766284613,0.003,111060.0,111050.0,1.03667002]
[1761766284853,0.003,111060.0,111050.0,1.12648903]
[1761766285538,0.003,111060.0,111050.0,0.46153108]
[1761766285770,0.18408283,111060.0,111050.0,0.03326108]
[1761766286023,0.20926331,111060.0,111050.0,0.00462108]
[1761766286470,0.18508283,111060.0,111050.0,0.00462108]
[1761766286930,0.18108283,111060.0,111050.0,0.21536013]
[1761766287153,0.18008283,111060.0,111050.0,0.03226108]
[1761766287411,0.18208283,111060.0,111050.0,0.00462108]
[1761766287667,0.18208283,111060.0,111050.0,0.00162108]
[1761766287886,0.18308283,111060.0,111050.0,0.00362108]
[1761766288085,0.18208283,111060.0,111050.0,0.03526108]
[1761766288284,0.18208283,111060.0,111050.0,0.21536013]
[1761766288491,0.18308283,111060.0,111050.0,0.00362108]
[1761766288900,0.27390184,111060.0,111050.0,0.00362108]
[1761766289108,0.27290184,111060.0,111050.0,0.00362108]
[1761766289316,0.27390184,111060.0,111050.0,0.00362108]
[1761766289752,0.65008412,111060.0,111050.0,0.00362108]
[1761766289974,0.73309933,111060.0,111050.0,0.00362108]
[1761766290831,0.73109933,111060.0,111050.0,0.00062108]
[1761766291042,0.73509933,111060.0,111050.0,0.00162108]
[1761766291239,0.73609933,111060.0,111050.0,0.00162108]
[1761766293679,0.64811656,111040.0,111030.0,1e-08]
[1761766293840,0.73993557,111040.0,111030.0,0.00100001]
[1761766294051,0.73793557,111040.0,111030.0,1e-08]
[1761766294478,0.18013149,111030.0,111020.0,0.00045]
[1761766294690,0.2895505,111030.0,111020.0,0.00045]
[1761766295991,0.2915505,111030.0,111020.0,0.00045]
[1761766296168,0.37848771,111030.0,111020.0,0.00045]
[1761766296781,0.38348771,111030.0,111020.0,0.00045]
[1761766296991,0.2965505,111030.0,111020.0,0.00045]
[1761766297199,0.6355505,111030.0,111020.0,0.00045]
[1761766297406,0.6365505,111030.0,111020.0,0.00045]
[1761766298034,0.66573278,111030.0,111020.0,0.00045]
[1761766298460,0.66673278,111030.0,111020.0,0.00145]
[1761766298637,0.75655179,111030.0,111020.0,0.00145]
[1761766298867,0.72036951,111030.0,111020.0,0.00145]
[1761766299449,0.75655179,111030.0,111020.0,0.00145]
[1761766299994,0.2895505,111030.0,111020.0,0.00145]
[1761766300205,0.2895505,111030.0,111020.0,0.03175]
[1761766300627,0.19873149,111030.0,111020.0,0.03175]
[1761766300834,0.19873149,111030.0,111020.0,0.21189772]
[1761766301037,0.19973149,111030.0,111020.0,0.00145]
[1761766301285,0.23771617,111030.0,111020.0,0.00145]
[1761766301675,0.32853518,111030.0,111020.0,0.00145]
[1761766301893,0.32753518,111030.0,111020.0,0.00145]
[1761766302098,0.32853518,111030.0,111020.0,0.00145]
[1761766302302,0.32753518,111030.0,111020.0,0.00145]
[1761766302961,0.2885505,111030.0,111020.0,0.21189772]
[1761766303182,0.10941901,111030.0,111020.0,0.03175]
[1761766303390,0.19873149,111030.0,111020.0,0.03175]
[1761766303596,0.19973149,111030.0,111020.0,0.00145]
[1761766305012,0.2905505,111030.0,111020.0,0.00145]
[1761766305214,0.37161708,111030.0,111020.0,0.00145]
[1761766306012,0.37161708,111030.0,111020.0,0.00045]
[1761766306217,0.40679936,111030.0,111020.0,0.00045]
[1761766306425,0.74879936,111030.0,111020.0,0.00045]
[1761766307338,0.74779936,111030.0,111020.0,0.00045]
[1761766307538,0.75079936,111030.0,111020.0,0.00045]
[1761766308706,0.75079936,111030.0,111020.0,0.00110484]
[1761766309850,0.66973278,111030.0,111020.0,0.00110484]
[1761766314845,0.64510724,111030.0,111020.0,0.00110484]
[1761766317648,0.64510724,111030.0,111020.0,1e-08]
[1761766318071,0.66195027,111030.0,111020.0,1e-08]
[1761766318284,0.67195026,111030.0,111020.0,1e-08]
[1761766318503,0.75658169,111030.0,111020.0,1e-08]
[1761766318716,0.76658168,111030.0,111020.0,1e-08]
[1761766318926,0.75258169,111030.0,111020.0,1e-08]
[1761766319140,0.77158168,111030.0,111020.0,1e-08]
[1761766319574,0.74415682,111030.0,111020.0,1e-08]
[1761766319789,0.67595026,111030.0,111020.0,1e-08]
[1761766320002,0.67995026,111030.0,111020.0,1e-08]
[1761766320641,0.67195026,111030.0,111020.0,1e-08]
[1761766321090,0.66795026,111030.0,111020.0,1e-08]
[1761766321297,0.74375682,111030.0,111020.0,1e-08]
[1761766321471,0.74575682,111030.0,111020.0,1e-08]
[1761766321909,0.75875681,111030.0,111020.0,1e-08]
[1761766322289,0.76075681,111030.0,111020.0,1e-08]
[1761766322487,0.76918614,111030.0,111020.0,1e-08]
[1761766323132,0.76718614,111030.0,111020.0,1e-08]
[1761766323356,0.76218614,111030.0,111020.0,1e-08]
[1761766323566,0.76918614,111030.0,111020.0,1e-08]
[1761766324004,0.75075682,111030.0,111020.0,1e-08]
[1761766324502,0.75275682,111030.0,111020.0,1e-08]
[1761766325664,0.77118314,111030.0,111020.0,1e-08]
[1761766326347,0.77118228,111030.0,111020.0,1e-08]
[1761766326570,0.76275681,111030.0,111020.0,1e-08]
[1761766326809,0.76118183,111030.0,111020.0,1e-08]
[1761766327033,0.77118182,111030.0,111020.0,1e-08]
[1761766327254,0.76275681,111030.0,111020.0,1e-08]
[1761766327477,0.62176799,111030.0,111020.0,1e-08]
[1761766327691,0.62476799,111030.0,111020.0,1e-08]
[1761766327912,0.66095027,111030.0,111020.0,1e-08]
[1761766328158,0.65795027,111030.0,111020.0,1e-08]
[1761766328373,0.74275682,111030.0,111020.0,1e-08]
[1761766328595,0.74575682,111030.0,111020.0,1e-08]
[1761766329037,0.75375682,111030.0,111020.0,1e-08]
[1761766329260,0.74575682,111030.0,111020.0,1e-08]
[1761766329474,0.75275682,111030.0,111020.0,1e-08]
[1761766329916,0.71657454,111030.0,111020.0,1e-08]
[1761766330232,0.75275682,111030.0,111020.0,1e-08]
[1761766330451,0.55630622,111010.0,111000.0,9.28073837]
[1761766330669,0.67561608,111010.0,111000.0,9.18259068]
[1761766330882,0.67561608,111010.0,111000.0,8.86462336]
[1761766331104,0.68561607,111010.0,111000.0,8.67617888]
[1761766331326,0.85053654,111010.0,111000.0,8.39577375]
[1761766331546,0.87780595,111010.0,111000.0,8.15850518]
[1761766331764,0.87980595,111010.0,111000.0,7.97592527]
[1761766331987,0.87980595,111010.0,111000.0,7.86354476]
[1761766332205,0.88280595,111010.0,111000.0,7.65957366]
[1761766332434,0.85053654,111010.0,111000.0,7.41749384]
[1761766332637,0.85053654,111010.0,111000.0,7.33485231]
[1761766332862,0.86053654,111010.0,111000.0,7.07993841]
[1761766333146,0.86053654,111010.0,111000.0,7.00171088]
[1761766333363,0.85053655,111010.0,111000.0,6.64857068]
[1761766333582,0.85053655,111010.0,111000.0,6.53510642]
[1761766333826,0.86053654,111010.0,111000.0,6.36310874]
[1761766334077,0.86453654,111010.0,111000.0,6.0347517]
[1761766334321,0.86453654,111010.0,111000.0,5.7588098]
[1761766334529,0.86453654,111010.0,111000.0,5.61961582]
[1761766334772,0.85453654,111010.0,111000.0,5.48477124]
[1761766335001,0.84452486,111010.0,111000.0,5.48477124]
[1761766335225,0.85410985,111010.0,111000.0,5.48477124]
[1761766335441,0.83610986,111010.0,111000.0,5.48477124]
[1761766335909,0.84610986,111010.0,111000.0,5.48477124]
[1761766336379,0.84608398,111010.0,111000.0,5.48520794]
[1761766336591,0.83608399,111010.0,111000.0,5.48520794]
[1761766336823,0.83608399,111010.0,111000.0,5.48524794]
[1761766336824,0.42941958,111010.0,111000.0,5.48524794]
[1761766337048,0.31759046,111010.0,111000.0,5.48524794]
[1761766337270,0.30076295,111010.0,111000.0,5.48524794]
[1761766337497,0.6575859,111010.0,111000.0,5.48524794]
[1761766337963,0.68976818,111010.0,111000.0,5.48524794]
[1761766338176,0.77058719,111010.0,111000.0,5.48524794]
[1761766338393,0.77458719,111010.0,111000.0,5.48524794]
[1761766338608,0.77358719,111010.0,111000.0,5.48524794]
[1761766338825,0.76958719,111010.0,111000.0,5.48524794]
[1761766339043,0.77958719,111010.0,111000.0,5.48524794]
[1761766340397,0.77958719,111010.0,111000.0,4.91553189]
[1761766340398,0.79958717,111010.0,111000.0,4.91553189]
[1761766340623,0.79958717,111010.0,111000.0,4.77034703]
[1761766340889,3.91818105,111010.0,111000.0,4.040772]
[1761766341110,4.15455151,111010.0,111000.0,3.41676603]
[1761766341332,4.14755151,111010.0,111000.0,3.26719087]
[1761766341544,4.15155151,111010.0,111000.0,3.0476638]
[1761766341764,4.16155151,111010.0,111000.0,2.95283493]
[1761766341969,4.26658003,111010.0,111000.0,2.8208465]
[1761766342184,4.26658003,111010.0,111000.0,2.59108373]
[1761766342398,4.25658003,111010.0,111000.0,2.38984107]
[1761766342618,4.25658003,111010.0,111000.0,2.33130159]
[1761766342841,4.27158003,111010.0,111000.0,2.15798176]
[1761766343061,4.27158003,111010.0,111000.0,1.96234486]
[1761766343292,4.27858003,111010.0,111000.0,1.70478558]
[1761766343503,4.18368003,111010.0,111000.0,1.59227904]
[1761766343725,4.15430956,111010.0,111000.0,1.40403328]
[1761766344081,4.12018106,111010.0,111000.0,1.40403328]
[1761766344289,4.12018106,111010.0,111000.0,1.05247833]
[1761766344524,4.12018106,111010.0,111000.0,0.86561878]
[1761766344749,3.79018105,111010.0,111000.0,0.86561878]
[1761766344957,0.79018105,111010.0,111000.0,0.86561878]
[1761766345606,0.77518105,111010.0,111000.0,0.86561878]
[1761766345837,1.11518105,111010.0,111000.0,0.86561878]
[1761766346027,1.12618105,111010.0,111000.0,0.86561878]
[1761766346235,1.11918105,111010.0,111000.0,0.86561878]
[1761766346435,1.12318105,111010.0,111000.0,0.86561878]
[1761766346642,1.12318105,111010.0,111000.0,0.62291878]